fUSD/lending_fUSD_20260116
["ID","MTS","AMOUNT","RATE_DAILY","PERIOD"]
[402149972,1768553634928,-1431.59,0.0003726,10]
[402149973,1768553634938,-505.00303937,0.0003726,10]
[402149974,1768553634947,-582.81,0.0003726,10]
[402149975,1768553634956,-500.0,0.0003726,10]
[402149976,1768553634966,-1103.68,0.0003726,5]
[402149977,1768553634975,-500.0,0.0003726,10]
[402149978,1768553634984,-500.0,0.0003726,10]
[402149979,1768553634994,-500.0,0.0003726,10]
[402149980,1768553635004,-872.15,0.0003726,10]
[402149981,1768553635014,-703.99,0.0003726,10]
[402149982,1768553635024,-548.64,0.0003726,10]
[402149983,1768553635034,-850.54,0.0003726,10]
[402149984,1768553635044,-1034.71,0.0003726,10]
[402149985,1768553635058,-500.0,0.0003726,10]
[402149986,1768553635069,-500.0,0.0003726,10]
[402149987,1768553635082,-500.0,0.0003726,10]
[402149988,1768553635094,-712.34,0.0003726,10]
[402149989,1768553635109,-500.0,0.0003726,10]
[402149990,1768553635119,-1048.59,0.0003726,10]
[402149991,1768553635130,-500.0,0.0003726,10]
[402149992,1768553635140,-500.0,0.0003726,10]
[402149993,1768553635151,-500.0,0.0003726,10]
[402149994,1768553635163,-500.0,0.0003726,10]
[402149995,1768553635173,-797.78,0.0003726,10]
[402149996,1768553635184,-864.57,0.0003726,10]
[402149997,1768553635194,-500.0,0.0003726,10]
[402149998,1768553635207,-500.0,0.0003726,10]
[402149999,1768553635216,-500.0,0.0003726,10]
[402150000,1768553635226,-669.34,0.0003726,10]
[402150001,1768553635235,-500.0,0.0003726,10]
[402150002,1768553635244,-1695.98,0.0003726,10]
[402150003,1768553635253,-500.0,0.0003726,10]
[402150004,1768553635263,-500.0,0.0003726,10]
[402150005,1768553635273,-500.0,0.0003726,10]
[402150006,1768553635283,-746.93,0.0003726,10]
[402150007,1768553635292,-710.63,0.0003726,10]
[402150008,1768553635302,-500.0,0.0003726,10]
[402150009,1768553635312,-576.53,0.0003726,10]
[402150010,1768553635322,-551.55,0.0003726,10]
[402150011,1768553635333,-848.31,0.0003726,10]
[402150012,1768553635343,-500.0,0.0003726,10]
[402150013,1768553635352,-500.0,0.0003726,10]
[402150014,1768553635361,-500.0,0.0003726,10]
[402150015,1768553635371,-640.15,0.0003726,10]
[402150016,1768553635381,-893.03,0.0003726,10]
[402150017,1768553635391,-829.07,0.0003726,10]
[402150018,1768553635401,-500.0,0.0003726,10]
[402150019,1768553635411,-1044.65,0.0003726,2]
[402150020,1768553635420,-580.09,0.0003726,10]
[402150021,1768553635429,-2280.83,0.0003726,10]
[402150022,1768553635439,-950.38,0.0003726,10]
[402150023,1768553635448,-925.85,0.0003726,10]
[402150024,1768553635458,-926.38,0.0003726,10]
[402150025,1768553635467,-1091.37,0.0003726,10]
[402150026,1768553635476,-934.74,0.0003726,10]
[402150027,1768553635485,-316.5579622,0.0003726,10]
[402150028,1768553635495,-1096.7,0.0003726,10]
[402150029,1768553635504,-500.0,0.0003726,120]
[402150030,1768553635514,-500.0,0.0003726,10]
[402150031,1768553635524,-500.0,0.0003726,10]
[402150032,1768553635533,-500.0,0.0003726,10]
[402150033,1768553635544,-500.0,0.0003726,10]
[402150034,1768553635558,-615.77,0.0003726,10]
[402150035,1768553635567,-694.36,0.0003726,10]
[402150036,1768553635579,-816.08,0.0003726,10]
[402150037,1768553635590,-703.54,0.0003726,10]
[402150038,1768553635599,-1150.42,0.0003726,10]
[402150039,1768553635608,-500.0,0.0003726,10]
[402150040,1768553635619,-658.36,0.0003726,10]
[402150041,1768553635628,-788.58,0.0003726,10]
[402150042,1768553635638,-578.18,0.0003726,10]
[402150043,1768553635649,-1428.02,0.0003726,10]
[402150044,1768553635659,-500.0,0.0003726,10]
[402150045,1768553635669,-705.82,0.0003726,10]
[402150046,1768553635678,-931.05,0.0003726,10]
[402150047,1768553635689,-577.64,0.0003726,10]
[402150048,1768553635698,-528.44,0.0003726,10]
[402150049,1768553635709,-500.0,0.0003726,10]
[402150050,1768553635718,-2108.45,0.0003726,10]
[402150051,1768553635728,-500.0,0.0003726,10]
[402150052,1768553635737,-1149.82,0.0003726,10]
[402150053,1768553635747,-500.0,0.0003726,10]
[402150054,1768553635756,-683.35,0.0003726,10]
[402150055,1768553635765,-500.0,0.0003726,10]
[402150056,1768553635774,-959.04,0.0003726,10]
[402150057,1768553635784,-500.0,0.0003726,10]
[402150058,1768553635793,-500.0,0.0003726,10]
[402150059,1768553635802,-500.0,0.0003726,10]
[402150060,1768553635811,-700.17,0.0003726,10]
[402150061,1768553635820,-500.0,0.0003726,10]
[402150062,1768553635830,-510.27148706,0.0003726,10]
[402150063,1768553635840,-500.0,0.0003726,10]
[402150064,1768553635849,-625.74,0.0003726,10]
[402150065,1768553635858,-500.0,0.0003726,10]
[402150066,1768553635867,-500.0,0.0003726,10]
[402150067,1768553635876,-500.0,0.0003726,10]
[402150068,1768553635886,-754.4,0.0003726,10]
[402150069,1768553635895,-500.0,0.0003726,10]
[402150070,1768553635904,-500.0,0.0003726,10]
[402150071,1768553635914,-737.5,0.0003726,10]
[402150072,1768553635924,-637.87,0.0003726,10]
[402150073,1768553635934,-625.2,0.0003726,10]
[402150074,1768553635944,-641.84,0.0003726,10]
[402150075,1768553635953,-610.78,0.0003726,10]
[402150076,1768553635962,-544.89,0.0003726,10]
[402150077,1768553635972,-523.76,0.0003726,10]
[402150078,1768553635981,-500.0,0.0003726,10]
[402150079,1768553635990,-500.0,0.0003726,10]
[402150080,1768553635999,-500.0,0.0003726,10]
[402150081,1768553636009,-500.0,0.0003726,10]
[402150082,1768553636019,-551.65,0.0003726,10]
[402150083,1768553636028,-1594.08,0.0003726,10]
[402150084,1768553636037,-500.0,0.0003726,10]
[402150085,1768553636047,-500.0,0.0003726,10]
[402150086,1768553636056,-500.0,0.0003726,10]
[402150087,1768553636065,-500.0,0.0003726,10]
[402150088,1768553636075,-796.44,0.0003726,10]
[402150089,1768553636085,-500.0,0.0003726,10]
[402150090,1768553636094,-500.0,0.0003726,10]
[402150091,1768553636104,-1146.06,0.0003726,10]
[402150092,1768553636114,-567.16,0.0003726,10]
[402150093,1768553636123,-517.33,0.0003726,10]
[402150094,1768553636132,-500.0,0.0003726,10]
[402150095,1768553636142,-522.75,0.0003726,10]
[402150096,1768553636151,-500.0,0.0003726,10]
[402150097,1768553636160,-500.0,0.0003726,10]
[402150098,1768553636170,-500.0,0.0003726,10]
[402150099,1768553636179,-751.2,0.0003726,10]
[402150100,1768553636188,-500.0,0.0003726,10]
[402150101,1768553636197,-662.29,0.0003726,10]
[402150102,1768553636207,-669.08,0.0003726,10]
[402150103,1768553636217,-500.0,0.0003726,10]
[402150104,1768553636227,-677.54,0.0003726,10]
[402150105,1768553636237,-1168.86,0.0003726,10]
[402150106,1768553636246,-500.0,0.0003726,10]
[402150107,1768553636256,-1117.06,0.0003726,10]
[402150108,1768553636266,-1648.88,0.0003726,10]
[402150109,1768553636275,-636.52,0.0003726,10]
[402150110,1768553636284,-636.43,0.0003726,10]
[402150111,1768553636293,-575.94,0.0003726,10]
[402150112,1768553636302,-716.91,0.0003726,10]
[402150113,1768553636311,-876.77,0.0003726,10]
[402150114,1768553636321,-500.0,0.0003726,10]
[402150115,1768553636330,-500.0,0.0003726,10]
[402150116,1768553636340,-500.0,0.0003726,10]
[402150117,1768553636349,-500.0,0.0003726,10]
[402150118,1768553636358,-500.0,0.0003726,10]
[402150119,1768553636367,-990.78,0.0003726,10]
[402150120,1768553636376,-541.15,0.0003726,10]
[402150121,1768553636385,-1150.93,0.0003726,10]
[402150122,1768553636395,-909.88,0.0003726,10]
[402150123,1768553636404,-500.0,0.0003726,10]
[402150124,1768553636413,-903.48,0.0003726,10]
[402150125,1768553636422,-527.48,0.0003726,10]
[402150126,1768553636431,-500.0,0.0003726,10]
[402150127,1768553636440,-744.14,0.0003726,10]
[402150128,1768553636449,-507.96,0.0003726,10]
[402150129,1768553636458,-662.66,0.0003726,10]
[402150130,1768553636466,-690.13,0.0003726,10]
[402150131,1768553636475,-519.9,0.0003726,10]
[402150132,1768553636485,-1521.24,0.0003726,10]
[402150133,1768553636494,-823.6,0.0003726,10]
[402150134,1768553636503,-500.0,0.0003726,10]
[402150135,1768553636512,-500.0,0.0003726,10]
[402150136,1768553636521,-1331.43,0.0003726,10]
[402150137,1768553636530,-732.95,0.0003726,10]
[402150138,1768553636543,-1326.59,0.0003726,10]
[402150139,1768553636552,-1280.38,0.0003726,10]
[402150140,1768553636561,-500.0,0.0003726,10]
[402150141,1768553636570,-500.0,0.0003726,10]
[402150142,1768553636583,-791.99,0.0003726,10]
[402150143,1768553636592,-500.0,0.0003726,10]
[402150144,1768553636601,-500.0,0.0003726,10]
[402150145,1768553636612,-512.72,0.0003726,10]
[402150146,1768553636622,-979.74,0.0003726,10]
[402150147,1768553636630,-500.0,0.0003726,10]
[402150148,1768553636639,-500.0,0.0003726,10]
[402150149,1768553636648,-644.37,0.0003726,10]
[402150150,1768553636658,-577.2,0.0003726,10]
[402150151,1768553636668,-970.71,0.0003726,10]
[402150152,1768553636678,-570.0,0.0003726,10]
[402150153,1768553636688,-500.0,0.0003726,10]
[402150154,1768553636697,-500.0,0.0003726,10]
[402150155,1768553636707,-500.0,0.0003726,10]
[402150156,1768553636717,-500.0,0.0003726,10]
[402150157,1768553636726,-500.0,0.0003726,10]
[402150158,1768553636735,-751.52,0.0003726,10]
[402150159,1768553636744,-1015.29,0.0003726,10]
[402150160,1768553636753,-500.0,0.0003726,10]
[402150161,1768553636762,-518.25,0.0003726,10]
[402150162,1768553636772,-500.0,0.0003726,10]
[402150163,1768553636781,-685.85,0.0003726,10]
[402150164,1768553636790,-612.29,0.0003726,10]
[402150165,1768553636800,-500.0,0.0003726,10]
[402150166,1768553636810,-500.0,0.0003726,10]
[402150167,1768553636819,-806.51,0.0003726,10]
[402150168,1768553636828,-500.0,0.0003726,10]
[402150169,1768553636838,-500.0,0.0003726,10]
[402150170,1768553636847,-500.0,0.0003726,10]
[402150171,1768553636856,-359.59058932,0.0003726,10]
[402150172,1768553636865,-695.39,0.0003726,10]
[402150173,1768553636875,-607.83,0.0003726,10]
[402150174,1768553636884,-549.65,0.0003726,10]
[402150175,1768553636894,-500.0,0.0003726,10]
[402150176,1768553636903,-1220.06,0.0003726,10]
[402150177,1768553636912,-1662.06,0.0003726,10]
[402150178,1768553636921,-554.93575036,0.0003726,10]
[402150179,1768553636931,-500.0,0.0003726,10]
[402150180,1768553636941,-500.0,0.0003726,10]
[402150181,1768553636950,-500.0,0.0003726,10]
[402150182,1768553636959,-500.0,0.0003726,10]
[402150183,1768553636969,-500.0,0.0003726,10]
[402150184,1768553636978,-500.0,0.0003726,10]
[402150185,1768553636987,-1639.22,0.0003726,10]
[402150186,1768553636996,-500.0,0.0003726,10]
[402150187,1768553637005,-500.0,0.0003726,10]
[402150188,1768553637014,-500.0,0.0003726,10]
[402150189,1768553637024,-500.0,0.0003726,10]
[402150190,1768553637033,-908.6,0.0003726,10]
[402150191,1768553637042,-500.0,0.0003726,10]
[402150192,1768553637051,-500.0,0.0003726,10]
[402150193,1768553637060,-1617.91,0.0003726,10]
[402150194,1768553637069,-816.75,0.0003726,10]
[402150195,1768553637079,-1143.12,0.0003726,10]
[402150196,1768553637087,-500.0,0.0003726,10]
[402150197,1768553637097,-500.0,0.0003726,10]
[402150198,1768553637106,-500.0,0.0003726,10]
[402150199,1768553637115,-500.0,0.0003726,10]
[402150200,1768553637124,-716.45,0.0003726,10]
[402150201,1768553637134,-500.0,0.0003726,10]
[402150202,1768553637142,-885.26,0.0003726,10]
[402150203,1768553637151,-1027.78,0.0003726,10]
[402150204,1768553637160,-500.0,0.0003726,10]
[402150205,1768553637169,-678.11,0.0003726,10]
[402150206,1768553637177,-1096.77,0.0003726,10]
[402150207,1768553637186,-500.0,0.0003726,10]
[402150208,1768553637195,-681.79,0.0003726,10]
[402150209,1768553637203,-702.08,0.0003726,10]
[402150210,1768553637212,-1477.47,0.0003726,10]
[402150211,1768553637221,-500.0,0.0003726,10]
[402150212,1768553637230,-500.0,0.0003726,10]
[402150213,1768553637238,-989.99,0.0003726,10]
[402150214,1768553637247,-676.3,0.0003726,10]
[402150215,1768553637256,-500.0,0.0003726,10]
[402150216,1768553637265,-500.0,0.0003726,10]
[402150217,1768553637274,-500.0,0.0003726,10]
[402150218,1768553637284,-912.84,0.0003726,10]
[402150219,1768553637303,-500.0,0.0003726,10]
[402150220,1768553637312,-807.54,0.0003726,10]
[402150221,1768553637322,-500.0,0.0003726,10]
[402150222,1768553637332,-591.47,0.0003726,10]
[402150223,1768553637340,-1293.68,0.0003726,10]
[402150224,1768553637349,-500.0,0.0003726,10]
[402150225,1768553637358,-500.0,0.0003726,10]
[402150226,1768553637367,-500.0,0.0003726,10]
[402150227,1768553637376,-500.0,0.0003726,10]
[402150228,1768553637385,-500.0,0.0003726,10]
[402150229,1768553637394,-500.0,0.0003726,10]
[402150230,1768553637407,-618.86,0.0003726,10]
[402150231,1768553637416,-834.67,0.0003726,10]
[402150232,1768553637426,-500.0,0.0003726,10]
[402150233,1768553637435,-500.0,0.0003726,10]
[402150234,1768553637444,-4949.68,0.0003726,10]
[402150235,1768553637453,-1730.65,0.0003726,10]
[402150236,1768553637462,-500.0,0.0003726,10]
[402150237,1768553637472,-500.0,0.0003726,10]
[402150238,1768553637481,-500.46,0.0003726,10]
[402150239,1768553637490,-930.98,0.0003726,10]
[402150240,1768553637499,-875.62,0.0003726,10]
[402150241,1768553637508,-500.0,0.0003726,10]
[402150242,1768553637517,-500.0,0.0003726,10]
[402150243,1768553637527,-500.0,0.0003726,10]
[402150244,1768553637536,-1041.0,0.0003726,10]
[402150245,1768553637549,-500.0,0.0003726,10]
[402150246,1768553637558,-500.0,0.0003726,10]
[402150247,1768553637567,-1262.31,0.0003726,10]
[402150248,1768553637576,-524.92,0.0003726,10]
[402150249,1768553637586,-591.83,0.0003726,10]
[402150250,1768553637595,-500.0,0.0003726,10]
[402150251,1768553637604,-500.0,0.0003726,10]
[402150252,1768553637614,-614.68,0.0003726,10]
[402150253,1768553637623,-500.0,0.0003726,10]
[402150254,1768553637631,-790.99,0.0003726,10]
[402150255,1768553637640,-1848.72,0.0003726,10]
[402150256,1768553637649,-500.0,0.0003726,10]
[402150257,1768553637663,-353.65,0.0003726,2]
[402150258,1768553637672,-382.15229518,0.0003726,10]
[402150259,1768553637682,-1044.21,0.0003726,10]
[402150260,1768553637691,-500.0,0.0003726,10]
[402150261,1768553637700,-500.0,0.0003726,10]
[402150262,1768553637709,-500.0,0.0003726,10]
[402150263,1768553637719,-1947.44,0.0003726,10]
[402150264,1768553637728,-629.32,0.0003726,10]
[402150265,1768553637737,-1553.42,0.0003726,10]
[402150266,1768553637746,-1024.82,0.0003726,10]
[402150267,1768553637756,-500.0,0.0003726,10]
[402150268,1768553637766,-875.71,0.0003726,10]
[402150269,1768553637780,-500.0,0.0003726,10]
[402150270,1768553637790,-795.66,0.0003726,10]
[402150271,1768553637801,-500.0,0.0003726,10]
[402150272,1768553637812,-1036.49,0.0003726,10]
[402150273,1768553637822,-1013.98,0.0003726,10]
[402150274,1768553637833,-562.25,0.0003726,10]
[402150275,1768553637842,-548.64,0.0003726,10]
[402150276,1768553637851,-543.96,0.0003726,10]
[402150277,1768553637862,-1422.5,0.0003726,10]
[402150278,1768553637871,-1126.68,0.0003726,10]
[402150279,1768553637881,-2121.76,0.0003726,10]
[402150280,1768553637892,-1905.23,0.0003726,10]
[402150281,1768553637901,-532.76,0.0003726,10]
[402150282,1768553637911,-502.52,0.0003726,10]
[402150283,1768553637921,-500.0,0.0003726,10]
[402150284,1768553637931,-500.0,0.0003726,10]
[402150285,1768553637940,-500.0,0.0003726,10]
[402150286,1768553637949,-540.07,0.0003726,10]
[402150287,1768553637958,-1016.35,0.0003726,10]
[402150288,1768553637967,-5056.94,0.0003726,10]
[402150289,1768553637977,-592.16,0.0003726,10]
[402150290,1768553637987,-889.56,0.0003726,10]
[402150291,1768553637997,-500.0,0.0003726,10]
[402150292,1768553638008,-1150.45,0.0003726,10]
[402150293,1768553638018,-1345.33,0.0003726,10]
[402150294,1768553638028,-648.45,0.0003726,10]
[402150295,1768553638038,-1052.14,0.0003726,10]
[402150296,1768553638051,-500.0,0.0003726,10]
[402150297,1768553638060,-990.43,0.0003726,10]
[402150298,1768553638069,-500.0,0.0003726,10]
[402150299,1768553638080,-877.08,0.0003726,10]
[402150300,1768553638089,-1245.81,0.0003726,10]
[402150301,1768553638099,-500.0,0.0003726,10]
[402150302,1768553638108,-665.86,0.0003726,10]
[402150303,1768553638118,-1029.8,0.0003726,10]
[402150304,1768553638127,-1298.7,0.0003726,10]
[402150305,1768553638137,-581.72,0.0003726,10]
[402150306,1768553638147,-850.69,0.0003726,10]
[402150307,1768553638156,-995.5,0.0003726,10]
[402150308,1768553638165,-500.0,0.0003726,10]
[402150309,1768553638174,-1075.5,0.0003726,10]
[402150310,1768553638184,-500.0,0.0003726,10]
[402150311,1768553638193,-500.0,0.0003726,10]
[402150312,1768553638202,-519.23,0.0003726,10]
[402150313,1768553638211,-529.03,0.0003726,10]
[402150314,1768553638221,-716.08,0.0003726,10]
[402150315,1768553638231,-500.0,0.0003726,10]
[402150316,1768553638243,-1363.31,0.0003726,10]
[402150317,1768553638252,-598.71,0.0003726,10]
[402150318,1768553638261,-1221.02,0.0003726,10]
[402150319,1768553638561,-1064.34,0.0003726,10]
[402150320,1768553638574,-823.04,0.0003726,10]
[402150321,1768553638586,-500.0,0.0003726,10]
[402150322,1768553638595,-2853.19,0.0003726,10]
[402150323,1768553638604,-500.0,0.0003726,10]
[402150324,1768553638615,-500.0,0.0003726,10]
[402150325,1768553638624,-549.28,0.0003726,10]
[402150326,1768553638634,-913.43,0.0003726,10]
[402150327,1768553638643,-500.0,0.0003726,10]
[402150328,1768553638653,-500.0,0.0003726,10]
[402150329,1768553638662,-591.9,0.0003726,10]
[402150330,1768553638671,-500.0,0.0003726,10]
[402150331,1768553638683,-540.86239334,0.0003726,10]
[402150332,1768553638694,-2393.97,0.0003726,10]
[402150333,1768553638704,-500.0,0.0003726,10]
[402150334,1768553638713,-500.0,0.0003726,10]
[402150335,1768553638724,-2257.21,0.0003726,10]
[402150336,1768553638734,-589.47,0.0003726,10]
[402150337,1768553638744,-805.83,0.0003726,10]
[402150338,1768553638754,-546.1,0.0003726,10]
[402150339,1768553638764,-500.0,0.0003726,10]
[402150340,1768553638774,-500.0,0.0003726,10]
[402150341,1768553638784,-1412.18,0.0003726,10]
[402150342,1768553638794,-500.0,0.0003726,10]
[402150343,1768553638803,-500.0,0.0003726,10]
[402150344,1768553638813,-500.0,0.0003726,10]
[402150345,1768553638823,-500.0,0.0003726,10]
[402150346,1768553638834,-200.0,0.0003726,120]
[402150347,1768553638843,-712.99,0.0003726,10]
[402150348,1768553638852,-500.0,0.0003726,10]
[402150349,1768553638863,-661.07,0.0003726,10]
[402150350,1768553638873,-732.11,0.0003726,10]
[402150351,1768553638883,-693.86,0.0003726,10]
[402150352,1768553638895,-1182.17,0.0003726,10]
[402150353,1768553638905,-713.12,0.0003726,10]
[402150354,1768553638914,-714.22,0.0003726,10]
[402150355,1768553638924,-652.47,0.0003726,10]
[402150356,1768553638934,-652.5,0.0003726,10]
[402150357,1768553638944,-1245.62,0.0003726,10]
[402150358,1768553638953,-500.0,0.0003726,10]
[402150359,1768553638963,-500.0,0.0003726,10]
[402150360,1768553638972,-500.0,0.0003726,10]
[402150361,1768553638982,-1497.09,0.0003726,10]
[402150362,1768553638991,-1210.4,0.0003726,10]
[402150363,1768553639001,-1212.59,0.0003726,10]
[402150364,1768553639011,-941.66,0.0003726,10]
[402150365,1768553639020,-1223.9,0.0003726,10]
[402150366,1768553639030,-500.0,0.0003726,10]
[402150367,1768553639039,-1292.5,0.0003726,10]
[402150368,1768553639049,-1141.45,0.0003726,10]
[402150369,1768553639058,-885.86,0.0003726,10]
[402150370,1768553639068,-520.6,0.0003726,10]
[402150371,1768553639080,-3901.38,0.0003726,10]
[402150372,1768553639089,-1228.85,0.0003726,10]
[402150373,1768553639100,-532.57,0.0003726,10]
[402150374,1768553639111,-1219.5,0.0003726,10]
[402150375,1768553639121,-2909.8,0.0003726,10]
[402150376,1768553639131,-858.87,0.0003726,10]
[402150377,1768553639141,-500.0,0.0003726,10]
[402150378,1768553639151,-544.68,0.0003726,10]
[402150379,1768553639160,-993.01,0.0003726,10]
[402150380,1768553639170,-999.49,0.0003726,10]
[402150381,1768553639180,-500.0,0.0003726,10]
[402150382,1768553639189,-1760.07,0.0003726,10]
[402150383,1768553639198,-553.74,0.0003726,10]
[402150384,1768553639208,-500.0,0.0003726,10]
[402150385,1768553639218,-1541.19,0.0003726,10]
[402150386,1768553639228,-500.0,0.0003726,10]
[402150387,1768553639239,-1004.55,0.0003726,10]
[402150388,1768553639248,-599.03,0.0003726,10]
[402150389,1768553639257,-1256.3,0.0003726,10]
[402150390,1768553639267,-722.08,0.0003726,10]
[402150391,1768553639277,-500.0,0.0003726,10]
[402150392,1768553639287,-1627.41,0.0003726,10]
[402150393,1768553639296,-500.0,0.0003726,10]
[402150394,1768553639306,-1143.9,0.0003726,10]
[402150395,1768553639315,-1224.65,0.0003726,10]
[402150396,1768553639325,-560.6,0.0003726,10]
[402150397,1768553639336,-2225.78,0.0003726,10]
[402150398,1768553639346,-1155.7,0.0003726,10]
[402150399,1768553639355,-500.0,0.0003726,10]
[402150400,1768553639365,-614.31,0.0003726,10]
[402150401,1768553639374,-500.0,0.0003726,10]
[402150402,1768553639384,-2192.51,0.0003726,10]
[402150403,1768553639393,-637.11,0.0003726,10]
[402150404,1768553639403,-429.18842477,0.0003726,10]
[402150405,1768553639412,-500.0,0.0003726,10]
[402150406,1768553639421,-758.24,0.0003726,10]
[402150407,1768553639431,-2013.58,0.0003726,10]
[402150408,1768553639441,-500.0,0.0003726,10]
[402150409,1768553639453,-2864.87,0.0003726,10]
[402150410,1768553639473,-808.72,0.0003726,10]
[402150411,1768553639483,-1567.87,0.0003726,10]
[402150412,1768553639493,-518.17,0.0003726,10]
[402150413,1768553639504,-1811.28,0.0003726,10]
[402150414,1768553639515,-558.81,0.0003726,10]
[402150415,1768553639525,-1071.23,0.0003726,10]
[402150416,1768553639535,-659.01,0.0003726,10]
[402150417,1768553639548,-866.89,0.0003726,10]
[402150418,1768553639562,-1032.65,0.0003726,10]
[402150419,1768553639572,-759.31,0.0003726,10]
[402150420,1768553639582,-637.41,0.0003726,10]
[402150421,1768553639593,-1020.76,0.0003726,10]
[402150422,1768553639603,-1128.16,0.0003726,10]
[402150423,1768553639613,-547.39,0.0003726,10]
[402150424,1768553639624,-7210.62,0.0003726,10]
[402150425,1768553639634,-5211.07,0.0003726,10]
[402150426,1768553639644,-1681.96,0.0003726,10]
[402150427,1768553639653,-729.24,0.0003726,10]
[402150428,1768553639664,-500.0,0.0003726,10]
[402150429,1768553639675,-5144.07,0.0003726,10]
[402150430,1768553639687,-1064.3,0.0003726,10]
[402150431,1768553639699,-521.48,0.0003726,10]
[402150432,1768553639711,-532.27,0.0003726,10]
[402150433,1768553639723,-500.0,0.0003726,10]
[402150434,1768553639734,-1000.95,0.0003726,10]
[402150435,1768553639743,-1000.0,0.0003726,10]
[402150436,1768553639755,-672.3,0.0003726,10]
[402150437,1768553639767,-2351.16,0.0003726,10]
[402150438,1768553639776,-679.92,0.0003726,10]
[402150439,1768553639788,-642.7,0.0003726,10]
[402150440,1768553639800,-1048.19,0.0003726,10]
[402150441,1768553639811,-500.0,0.0003726,10]
[402150442,1768553639823,-2044.82,0.0003726,10]
[402150443,1768553639834,-500.0,0.0003726,10]
[402150444,1768553639848,-735.56,0.0003726,10]
[402150445,1768553639859,-804.46,0.0003726,10]
[402150446,1768553639871,-500.0,0.0003726,10]
[402150447,1768553639883,-793.57,0.0003726,10]
[402150448,1768553639893,-500.0,0.0003726,10]
[402150449,1768553639905,-500.0,0.0003726,10]
[402150450,1768553639914,-2221.23,0.0003726,10]
[402150451,1768553639924,-1159.07,0.0003726,10]
[402150452,1768553639934,-500.0,0.0003726,10]
[402150453,1768553639944,-580.85,0.0003726,10]
[402150454,1768553639955,-941.49,0.0003726,10]
[402150455,1768553639966,-599.94,0.0003726,10]
[402150456,1768553639976,-500.0,0.0003726,10]
[402150457,1768553639986,-677.99,0.0003726,10]
[402150458,1768553639996,-1202.41,0.0003726,10]
[402150459,1768553640006,-2033.16,0.0003726,10]
[402150460,1768553640017,-2114.42,0.0003726,10]
[402150461,1768553640027,-1524.13,0.0003726,10]
[402150462,1768553640037,-953.55,0.0003726,10]
[402150463,1768553640047,-1013.89,0.0003726,10]
[402150464,1768553640058,-556.39,0.0003726,10]
[402150465,1768553640068,-500.0,0.0003726,10]
[402150466,1768553640079,-500.0,0.0003726,10]
[402150467,1768553640090,-1302.19,0.0003726,10]
[402150468,1768553640101,-593.7,0.0003726,10]
[402150469,1768553640112,-859.25,0.0003726,10]
[402150470,1768553640123,-623.79,0.0003726,10]
[402150471,1768553640133,-1282.3,0.0003726,10]